fUSD/lending_fUSD_20251024
["ID","MTS","AMOUNT","RATE_DAILY","PERIOD"]
[392242524,1761276632119,-219.0,0.00034131,2]
[392242525,1761276632128,-156.93,0.00034194,60]
[392242526,1761276632137,-156.93,0.00034294,60]
[392242527,1761276632148,-219.0,0.0003433,2]
[392242528,1761276632158,-830.23131837,0.00034393,3]
[392242529,1761276632170,-369.76868163,0.00034393,3]
[392242530,1761276632179,-156.93,0.00034394,60]
[392242531,1761276632191,-156.93,0.00034494,60]
[392242532,1761276632200,-219.0,0.00034499,2]
[392242533,1761276632212,-800.0,0.000345,2]
[392242534,1761276632222,-776.0,0.00034581,7]
[392242535,1761276632231,-300.0,0.00034593,3]
[392242536,1761276632241,-156.93,0.00034594,60]
[392242537,1761276632251,-800.0,0.00034617,2]
[392242538,1761276632260,-219.0,0.00034617,120]
[392242539,1761276632269,-219.0,0.00034636,2]
[392242540,1761276632279,-150.0,0.00034694,2]
[392242541,1761276632290,-157.0,0.00034694,60]
[392242542,1761276632300,-166.66,0.000348,30]
[392242544,1761276632309,-776.0,0.00034914,2]
[392242545,1761276632319,-776.0,0.00034969,2]
[392242547,1761276632329,-302.30799423,0.00035,2]
[392242549,1761276632338,-800.0,0.00035,2]
[392242551,1761276632347,-219.0,0.00035048,2]
[392242553,1761276632357,-385.836,0.00035048,40]
[392242555,1761276632366,-219.0,0.0003513,7]
[392242557,1761276632375,-219.0,0.00035164,7]
[392242559,1761276632385,-777.0,0.00035194,2]
[392242561,1761276632394,-777.0,0.00035195,7]
[392242563,1761276632403,-776.0,0.00035477,120]
[392242565,1761276632412,-166.66,0.00035532,30]
[392242567,1761276632421,-2695.07,0.00035583,2]
[392242569,1761276632431,-219.0,0.00035843,7]
[392242571,1761276632440,-800.0,0.00036,2]
[392242573,1761276632449,-776.0,0.00036029,2]
[392242576,1761276632458,-631.34,0.00036162,2]
[392242579,1761276632467,-166.66,0.00036265,30]
[392242582,1761276632476,-219.0,0.00036291,7]
[392242584,1761276632485,-777.0,0.00036383,120]
[392242586,1761276632494,-800.0,0.000365,2]
[392242588,1761276632503,-800.0,0.0003653,2]
[392242590,1761276632512,-800.0,0.0003659,2]
[392242592,1761276632522,-300.0,0.00036666,2]
[392242593,1761276632531,-200.0,0.00036739,2]
[392242594,1761276632540,-500.0,0.00036741,7]
[392242595,1761276632549,-353.25578801,0.00036741,15]
[392242596,1761276632558,-500.0,0.00036741,15]
[392242597,1761276632568,-297.37562203,0.00036741,7]
[392242598,1761276632577,-500.0,0.00036741,15]
[392242599,1761276632586,-500.0,0.00036741,15]
[392242600,1761276632605,-280.58607631,0.00036741,15]
[392242601,1761276632616,-500.0,0.00036741,15]
[392242602,1761276632625,-500.0,0.00036741,15]
[392242603,1761276632634,-500.0,0.00036741,15]
[392242604,1761276632644,-500.0,0.00036741,15]
[392242605,1761276632654,-499.99999999,0.00036741,15]
[392242606,1761276632663,-4697.96164905,0.00036742,2]
[392242607,1761276632672,-40000.0,0.00036742,120]
[392242608,1761276632684,-348.12,0.00036787,2]
[392242609,1761276632694,-219.0,0.00036827,2]
[392242610,1761276632704,-800.0,0.000369,2]
[392242611,1761276632713,-219.0,0.00036913,120]
[392242612,1761276632723,-166.66,0.00036997,30]
[392242613,1761276632733,-800.0,0.00037,2]
[392242614,1761276632742,-219.0,0.00037021,2]
[392242615,1761276632753,-219.0,0.00037113,2]
[392242616,1761276632763,-219.0,0.00037136,120]
[392242617,1761276632774,-500.0,0.00037136,60]
[392242618,1761276632784,-150.0,0.00037136,2]
[392242619,1761276632794,-874.0,0.00037136,60]
[392242620,1761276632804,-500.0,0.00037191,60]
[392242621,1761276632815,-874.0,0.00037191,60]
[392242622,1761276632824,-500.0,0.00037246,60]
[392242623,1761276632835,-874.0,0.00037246,60]
[392242624,1761276632847,-500.0,0.0003725,5]
[392242625,1761276632856,-500.0,0.0003725,5]
[392242626,1761276632866,-500.0,0.0003725,5]
[392242627,1761276632876,-500.0,0.0003725,5]
[392242628,1761276632887,-502.05388848,0.0003725,5]
[392242629,1761276632897,-500.0,0.0003725,2]
[392242630,1761276632908,-502.64413124,0.0003725,5]
[392242631,1761276632919,-512.18821634,0.0003725,5]
[392242632,1761276632929,-500.0,0.0003725,5]
[392242633,1761276632939,-502.68204026,0.0003725,5]
[392242634,1761276632949,-500.7278981,0.0003725,5]
[392242635,1761276632959,-500.0,0.0003725,5]
[392242636,1761276632969,-500.0,0.0003725,5]
[392242637,1761276632979,-799.64,0.00037281,2]
[392242638,1761276632989,-500.0,0.000373,60]
[392242639,1761276632999,-874.0,0.000373,60]
[392242640,1761276633009,-500.0,0.00037355,60]
[392242641,1761276633019,-219.0,0.00037391,2]
[392242642,1761276633028,-500.0,0.0003741,60]
[392242643,1761276633038,-210.93725279,0.00037465,60]
[392242644,1761276633048,-151.0,0.00037601,2]
[392242645,1761276633058,-151.0,0.00037601,2]
[392242646,1761276633068,-151.0,0.00037601,2]
[392242647,1761276633077,-151.0,0.00037601,2]
[392242648,1761276633087,-151.0,0.00037601,2]
[392242649,1761276633096,-151.0,0.00037601,2]
[392242650,1761276633111,-151.0,0.00037601,2]
[392242651,1761276633121,-151.0,0.00037601,2]
[392242652,1761276633131,-151.0,0.00037601,2]
[392242653,1761276633140,-151.0,0.00037601,2]
[392242654,1761276633154,-151.0,0.00037601,2]
[392242655,1761276633164,-151.0,0.00037601,2]
[392242656,1761276633174,-151.0,0.00037601,2]
[392242657,1761276633185,-151.0,0.00037601,2]
[392242658,1761276633195,-242.15946287,0.00037601,2]
[392242659,1761276633204,-151.0,0.00037601,2]
[392242660,1761276633215,-151.0,0.00037601,2]
[392242661,1761276633224,-151.0,0.00037601,2]
[392242662,1761276633234,-151.0,0.00037601,2]
[392242663,1761276633244,-155.34741323,0.00037601,2]
[392242664,1761276633254,-500.0,0.00037623,2]
[392242665,1761276633263,-500.0,0.00037623,2]
[392242666,1761276633272,-150.0,0.00037623,2]
[392242667,1761276633282,-150.0,0.00037623,2]
[392242668,1761276633292,-150.0,0.00037623,2]
[392242669,1761276633301,-150.0,0.00037623,2]
[392242670,1761276633311,-150.0,0.00037623,2]
[392242671,1761276633321,-185.00324724,0.00037623,2]
[392242672,1761276633330,-150.0,0.00037623,2]
[392242673,1761276633340,-500.0,0.00037623,2]
[392242674,1761276633349,-2991.15,0.00037646,2]
[392242675,1761276633359,-262.67642303,0.00037646,2]
[392242676,1761276633368,-150.0,0.00037646,2]
[392242677,1761276633378,-150.0,0.00037646,2]
[392242678,1761276633388,-217.94073406,0.00037646,2]
[392242679,1761276633397,-150.0,0.00037646,2]
[392242680,1761276633406,-150.0,0.00037646,2]
[392242681,1761276633416,-150.0,0.00037646,2]
[392242682,1761276633426,-150.0,0.00037646,2]
[392242683,1761276633435,-150.0,0.00037646,2]
[392242684,1761276633444,-150.0,0.00037646,2]
[392242685,1761276633454,-153.07151777,0.00037646,2]
[392242686,1761276633464,-150.0,0.00037646,2]
[392242687,1761276633474,-560.68982671,0.00037678,2]
[392242688,1761276633483,-500.0,0.00037678,2]
[392242689,1761276633493,-150.0,0.00037678,2]
[392242690,1761276633503,-278.48113883,0.00037678,2]
[392242691,1761276633512,-150.0,0.00037678,2]
[392242692,1761276633522,-150.0,0.00037678,2]
[392242693,1761276633535,-150.0,0.00037678,2]
[392242694,1761276633545,-500.0,0.00037678,2]
[392242695,1761276633555,-150.0,0.00037701,2]
[392242696,1761276633565,-150.0,0.00037701,2]
[392242697,1761276633574,-150.0,0.00037701,2]
[392242698,1761276633584,-150.0,0.00037701,2]
[392242699,1761276633593,-150.0,0.00037701,2]
[392242700,1761276633603,-151.46585824,0.00037701,2]
[392242701,1761276633612,-150.0,0.00037701,2]
[392242702,1761276633622,-150.0,0.00037701,2]
[392242703,1761276633631,-153.0,0.00037702,90]
[392242704,1761276633641,-166.66,0.0003773,30]
[392242705,1761276633651,-151.181311,0.00037733,2]
[392242706,1761276633730,-745.6569597,0.00037355,60]
[392242707,1761276633742,-128.3430403,0.00037355,60]
[392242708,1761276633752,-348.818689,0.00037733,2]
[392242709,1761276633762,-217.06794764,0.00037733,2]
[392242710,1761276633771,-207.72033382,0.00037733,2]
[392242711,1761276633781,-203.28085661,0.00037733,2]
[392242712,1761276633790,-150.0,0.00037733,2]
[392242713,1761276633800,-355.41749784,0.00037733,2]
[392242714,1761276633811,-144.58250216,0.00037733,2]
[392242715,1761276633820,-202.86817036,0.00037756,2]
[392242716,1761276633830,-204.07768268,0.00037756,2]
[392242717,1761276633840,-189.94940958,0.00037756,2]
[392242718,1761276633852,-10.05059042,0.00037756,2]
[392242719,1761276633862,-208.73853141,0.00037756,2]
[392242720,1761276633872,-203.59125803,0.00037756,2]
[392242721,1761276633882,-227.02048596,0.00037756,2]
[392242722,1761276633895,-131.54161279,0.00037756,2]
[392242723,1761276633923,-18.45838721,0.00037756,2]
[392242724,1761276633933,-454.86161279,0.00037787,2]
[392242725,1761276633966,-874.0,0.0003741,60]
[392242726,1761276633976,-46.57422615,0.00037787,2]
[392242727,1761276633987,-231.47745059,0.00037787,2]
[392242728,1761276633997,-500.0,0.00037787,2]
[392242729,1761276634007,-300.0,0.00037798,2]
[392242730,1761276634016,-502.22094389,0.00037798,5]
[392242731,1761276634026,-999.66218939,0.00037798,5]
[392242734,1761276640114,-500.0,0.00037136,2]
[392242735,1761276640124,-500.0,0.00037191,2]
[392242736,1761276640135,-500.0,0.00037246,2]
[392242737,1761276640145,-500.0,0.000373,2]
[392242738,1761276640157,-874.0,0.00037465,60]
[392242739,1761276640168,-874.0,0.0003752,60]
[392242740,1761276640179,-874.0,0.00037574,60]
[392242759,1761276640916,-874.0,0.00037629,60]
[392242760,1761276640949,-58676.35804,0.00037672,2]
[392242761,1761276640970,-874.0,0.00037684,60]
[392242762,1761276640982,-500.0,0.00037729,15]
[392242763,1761276640992,-181.06148947,0.00037729,15]
[392242764,1761276641002,-240.30250169,0.00037729,15]
[392242765,1761276641011,-383.46477883,0.00037729,15]
[392242766,1761276641021,-874.0,0.00037739,60]
[392242767,1761276641031,-874.0,0.00037794,60]
[392242768,1761276641040,-0.33781061,0.00037798,5]
[392242769,1761276641051,-1004.62794636,0.00037798,5]
[392242770,1761276641061,-1000.0,0.00037798,2]
[392242771,1761276641071,-1000.0,0.00037798,5]
[392242772,1761276641080,-702.80124093,0.00037798,5]
[392242773,1761276641089,-202.73893435,0.0003781,2]
[392242774,1761276641099,-500.0,0.00037842,2]
[392242775,1761276641109,-874.0,0.00037848,60]
[392242776,1761276641121,-500.0,0.00037897,2]
[392242777,1761276641131,-874.0,0.00037903,60]
[392242778,1761276641142,-500.0,0.00037952,2]
[392242779,1761276641152,-874.0,0.00037958,60]
[392242780,1761276641163,-800.0,0.00038,2]
[392242781,1761276641172,-800.0,0.00038,2]
[392242782,1761276641182,-620.0,0.00038,2]
[392242783,1761276641192,-500.0,0.00038007,2]
[392242784,1761276641202,-874.0,0.00038013,60]
[392242785,1761276641212,-152.0,0.00038057,3]
[392242786,1761276641222,-500.0,0.00038061,2]
[392242787,1761276641232,-874.0,0.00038068,60]
[392242788,1761276641241,-500.0,0.00038116,2]
[392242789,1761276641253,-874.0,0.00038122,60]
[392242790,1761276641270,-500.0,0.00038171,2]
[392242791,1761276641280,-874.0,0.00038177,60]
[392242792,1761276641290,-308.10015505,0.00038226,2]
[392242793,1761276641300,-874.0,0.00038232,60]
[392242794,1761276641310,-874.0,0.00038287,60]
[392242795,1761276641319,-874.0,0.00038341,60]
[392242796,1761276641328,-482.37671628,0.00038346,5]
[392242797,1761276641337,-886.0,0.00038396,60]
[392242798,1761276641347,-166.66,0.00038463,30]
[392242799,1761276641356,-800.0,0.00039,2]
[392242800,1761276641365,-300.0,0.00039168,2]
[392242801,1761276641375,-152.0,0.00039269,4]
[392242802,1761276641384,-261.92,0.00039654,2]
[392242803,1761276641393,-333.66,0.00039735,14]
[392242804,1761276641402,-158.32,0.00039931,14]
[392242805,1761276641412,-8863.0,0.0004,3]
[392242806,1761276641422,-800.0,0.0004,2]
[392242807,1761276641431,-233.4159525,0.00040007,30]
[392242808,1761276641440,-300.0,0.00040024,7]
[392242809,1761276641449,-152.0,0.00040481,5]
[392242810,1761276641459,-696.27,0.00040493,2]
[392242811,1761276641468,-183.46,0.00040509,14]
[392242812,1761276641477,-600.0,0.0004055,120]
[392242813,1761276641487,-752.66006281,0.0004058,30]
[392242814,1761276641497,-676.85550377,0.00040639,2]
[392242815,1761276641506,-400.0,0.000408,14]
[392242816,1761276641515,-3216.7871,0.00040895,2]
[392242817,1761276641525,-233.7175,0.00040895,2]
[392242818,1761276641535,-279.0283,0.00040895,2]
[392242819,1761276641546,-800.0,0.000409,14]
[392242820,1761276641558,-676.85550377,0.00040971,2]
[392242821,1761276641567,-760.01876692,0.00040995,13]
[392242822,1761276641577,-165.11464306,0.00040995,15]
[392242823,1761276641587,-4059.8188,0.00040995,2]
[392242824,1761276641598,-2136.5821,0.00040995,2]
[392242825,1761276641607,-33170.7581,0.00040995,2]
[392242826,1761276641617,-1000.0,0.00040995,2]
[392242827,1761276641627,-1000.0,0.00040995,2]
[392242828,1761276641636,-2500.0,0.00040995,2]
[392242829,1761276641645,-1145.79,0.00041,120]
[392242830,1761276641655,-800.0,0.00041,2]
[392242831,1761276641664,-1425.0,0.00041027,2]
[392242832,1761276641673,-214.62849482,0.00041073,5]
[392242833,1761276641683,-500.0,0.00041073,5]
[392242834,1761276641692,-501.32970145,0.00041073,5]
[392242835,1761276641701,-500.0,0.00041073,2]
[392242836,1761276641711,-509.52637745,0.00041073,5]
[392242837,1761276641720,-500.0,0.00041073,5]
[392242838,1761276641730,-500.0,0.00041073,5]
[392242839,1761276641739,-603.83,0.00041085,2]
[392242840,1761276641748,-151.0,0.00041092,14]
[392242841,1761276641757,-864.42,0.00041094,2]
[392242842,1761276641767,-510.99172985,0.00041095,30]
[392242843,1761276641776,-500.0,0.00041095,30]
[392242844,1761276641786,-503.85559779,0.00041095,30]
[392242845,1761276641796,-500.0,0.00041095,30]
[392242846,1761276641805,-500.0,0.00041095,30]
[392242847,1761276641815,-504.07716847,0.00041095,30]
[392242848,1761276641824,-500.0,0.00041095,30]
[392242849,1761276641835,-501.90970086,0.00041095,30]
[392242850,1761276641845,-500.0,0.00041095,30]
[392242851,1761276641855,-180.14874032,0.00041095,30]
[392242852,1761276641866,-500.0,0.00041095,30]
[392242853,1761276641875,-500.0,0.00041095,30]
[392242854,1761276641885,-504.39781936,0.00041095,30]
[392242855,1761276641896,-500.0,0.00041095,30]
[392242856,1761276641907,-500.0,0.00041095,30]
[392242857,1761276641917,-500.0,0.00041095,30]
[392242858,1761276641926,-500.0,0.00041095,30]
[392242859,1761276641938,-500.0,0.00041095,30]
[392242860,1761276641949,-500.0,0.00041095,30]
[392242861,1761276641960,-500.0,0.00041095,30]
[392242862,1761276641972,-500.0,0.00041095,30]
[392242863,1761276641987,-500.0,0.00041095,30]
[392242864,1761276642007,-500.0,0.00041095,30]
[392242865,1761276642017,-500.0,0.00041095,30]
[392242866,1761276642027,-500.0,0.00041095,30]
[392242867,1761276642037,-500.0,0.00041095,30]
[392242868,1761276642047,-500.0,0.00041095,30]
[392242869,1761276642056,-500.0,0.00041095,30]
[392242870,1761276642066,-500.0,0.00041095,30]
[392242871,1761276642075,-500.0,0.00041095,30]
[392242872,1761276642085,-500.0,0.00041095,30]
[392242873,1761276642094,-500.0,0.00041095,30]
[392242874,1761276642106,-500.0,0.00041095,30]
[392242875,1761276642119,-500.0,0.00041095,30]
[392242876,1761276642129,-500.0,0.00041095,30]
[392242877,1761276642138,-500.0,0.00041095,30]
[392242878,1761276642149,-500.0,0.00041095,30]
[392242879,1761276642159,-502.16164514,0.00041095,30]
[392242880,1761276642169,-500.0,0.00041095,2]
[392242881,1761276642178,-503.73704679,0.00041095,30]
[392242882,1761276642188,-500.0,0.00041095,30]
[392242883,1761276642197,-500.0,0.00041095,30]
[392242884,1761276642207,-500.0,0.00041095,30]
[392242885,1761276642217,-500.0,0.00041095,30]
[392242886,1761276642226,-500.0,0.00041095,30]
[392242887,1761276642235,-500.0,0.00041095,30]
[392242888,1761276642245,-500.0,0.00041095,30]
[392242889,1761276642255,-500.0,0.00041095,30]
[392242890,1761276642264,-500.0,0.00041095,30]
[392242891,1761276642274,-631.88,0.00041095,30]
[392242892,1761276642284,-500.0,0.00041095,30]
[392242893,1761276642293,-500.0,0.00041095,2]
[392242894,1761276642303,-500.0,0.00041095,30]
[392242895,1761276642312,-500.0,0.00041095,30]
[392242896,1761276642321,-500.0,0.00041095,30]
[392242897,1761276642330,-500.0,0.00041095,30]
[392242898,1761276642341,-500.0,0.00041095,30]
[392242899,1761276642351,-500.0,0.00041095,30]
[392242900,1761276642361,-500.0,0.00041095,30]
[392242901,1761276642373,-500.0,0.00041095,30]
[392242902,1761276642384,-500.0,0.00041095,30]
[392242903,1761276642395,-500.0,0.00041095,30]
[392242904,1761276642405,-500.0,0.00041095,30]
[392242905,1761276642415,-500.0,0.00041095,30]
[392242906,1761276642426,-500.0,0.00041095,30]
[392242907,1761276642435,-500.0,0.00041095,30]
[392242909,1761276642445,-500.0,0.00041095,30]
[392242910,1761276642457,-500.0,0.00041095,30]
[392242911,1761276642467,-500.0,0.00041095,30]
[392242912,1761276642476,-500.0,0.00041095,30]
[392242913,1761276642487,-500.0,0.00041095,30]
[392242914,1761276642497,-500.0,0.00041095,30]
[392242915,1761276642507,-500.0,0.00041095,30]
[392242916,1761276642516,-500.0,0.00041095,30]
[392242917,1761276642526,-500.0,0.00041095,2]
[392242918,1761276642536,-500.0,0.00041095,30]
[392242919,1761276642545,-500.0,0.00041095,30]
[392242920,1761276642554,-500.0,0.00041095,30]
[392242921,1761276642563,-500.0,0.00041095,30]
[392242922,1761276642573,-500.0,0.00041095,30]
[392242923,1761276642584,-500.0,0.00041095,30]
[392242924,1761276642594,-500.0,0.00041095,30]
[392242925,1761276642603,-662.02,0.00041095,30]
[392242926,1761276642613,-500.0,0.00041095,6]
[392242927,1761276642625,-550.71,0.00041095,30]
[392242928,1761276642634,-198.02470578,0.00041095,30]
[392242929,1761276642646,-500.0,0.00041095,30]
[392242930,1761276642655,-500.0,0.00041095,30]
[392242932,1761276642665,-500.0,0.00041095,30]
[392242933,1761276642674,-339.64188824,0.00041095,30]
[392242934,1761276642683,-500.0,0.00041095,30]
[392242935,1761276642692,-500.0,0.00041095,30]
[392242936,1761276642701,-500.0,0.00041095,30]
[392242937,1761276642711,-500.0,0.00041095,30]
[392242938,1761276642720,-500.0,0.00041095,30]
[392242939,1761276642729,-500.0,0.00041095,30]
[392242940,1761276642739,-500.0,0.00041095,30]
[392242941,1761276642749,-752.97,0.00041095,30]
[392242942,1761276642759,-562.37,0.00041095,30]
[392242943,1761276642770,-500.0,0.00041095,30]
[392242944,1761276642781,-500.0,0.00041095,30]
[392242945,1761276642791,-692.99,0.00041095,30]
[392242946,1761276642802,-500.0,0.00041095,30]
[392242947,1761276642813,-500.0,0.00041095,30]
[392242948,1761276642824,-500.0,0.00041095,30]
[392242949,1761276642835,-500.0,0.00041095,30]
[392242950,1761276642845,-500.0,0.00041095,30]
[392242951,1761276642854,-614.45,0.00041095,30]
[392242953,1761276642865,-500.0,0.00041095,30]
[392242955,1761276642875,-500.0,0.00041095,30]
[392242957,1761276642885,-500.0,0.00041095,30]
[392242958,1761276642895,-500.0,0.00041095,30]
[392242959,1761276642905,-653.26,0.00041095,30]
[392242960,1761276642914,-971.61,0.00041095,30]
[392242961,1761276642924,-500.0,0.00041095,30]
[392242962,1761276642933,-657.54,0.00041095,30]
[392242963,1761276642943,-741.84,0.00041095,30]
[392242964,1761276642952,-500.0,0.00041095,30]
[392242965,1761276642962,-500.0,0.00041095,30]
[392242966,1761276642972,-649.04,0.00041095,30]
[392242967,1761276642982,-500.0,0.00041095,30]
[392242968,1761276642991,-500.0,0.00041095,30]
[392242969,1761276643001,-500.0,0.00041095,30]
[392242970,1761276643011,-601.63,0.00041095,30]
[392242971,1761276643032,-500.0,0.00041095,30]
[392242972,1761276643043,-525.56,0.00041095,30]
[392242973,1761276643052,-500.0,0.00041095,30]
[392242974,1761276643061,-500.0,0.00041095,30]
[392242975,1761276643071,-500.0,0.00041095,30]
[392242976,1761276643081,-500.0,0.00041095,30]
[392242977,1761276643092,-944.3,0.00041095,30]
[392242978,1761276643102,-500.0,0.00041095,30]
[392242979,1761276643114,-500.0,0.00041095,30]
[392242980,1761276643123,-500.0,0.00041095,30]
[392242981,1761276643132,-500.0,0.00041095,30]
[392242982,1761276643141,-500.0,0.00041095,30]
[392242983,1761276643151,-692.19,0.00041095,30]
[392242984,1761276643160,-500.0,0.00041095,30]
[392242985,1761276643169,-500.0,0.00041095,30]
[392242986,1761276643178,-500.0,0.00041095,30]
[392242987,1761276643190,-500.0,0.00041095,30]
[392242988,1761276643201,-831.51,0.00041095,30]
[392242989,1761276643212,-934.85,0.00041095,30]
[392242990,1761276643221,-500.0,0.00041095,30]
[392242991,1761276643230,-500.0,0.00041095,30]
[392242992,1761276643241,-500.0,0.00041095,30]
[392242993,1761276643251,-500.0,0.00041095,30]
[392242994,1761276643261,-500.0,0.00041095,30]
[392242995,1761276643272,-500.0,0.00041095,30]
[392242996,1761276643281,-317.15829812,0.00041095,30]
[392242997,1761276643291,-500.0,0.00041095,30]
[392242998,1761276643302,-500.0,0.00041095,30]
[392242999,1761276643313,-500.0,0.00041095,30]
[392243000,1761276643323,-611.59,0.00041095,30]
[392243001,1761276643333,-500.0,0.00041095,30]
[392243002,1761276643343,-499.33942245,0.00041095,30]
[392243003,1761276643353,-500.0,0.00041095,30]
[392243004,1761276643363,-500.0,0.00041095,30]
[392243005,1761276643372,-500.0,0.00041095,30]
[392243006,1761276643382,-500.0,0.00041095,30]
[392243007,1761276643391,-500.0,0.00041095,30]
[392243008,1761276643462,-828.75,0.00041095,30]
[392243009,1761276643471,-500.0,0.00041095,30]
[392243010,1761276643481,-550.14,0.00041095,30]
[392243011,1761276643491,-502.05751386,0.00041095,30]
[392243012,1761276643500,-509.48,0.00041095,30]
[392243013,1761276643510,-500.0,0.00041095,30]
[392243014,1761276643518,-427.5279913,0.00041095,30]
[392243015,1761276643527,-500.0,0.00041095,30]
[392243016,1761276643536,-500.0,0.00041095,30]
[392243017,1761276643545,-500.0,0.00041095,30]
[392243018,1761276643555,-500.0,0.00041095,30]
[392243019,1761276643564,-500.0,0.00041095,30]
[392243020,1761276643573,-500.0,0.00041095,30]
[392243021,1761276643584,-500.0,0.00041095,30]
[392243022,1761276643595,-500.0,0.00041095,30]
[392243023,1761276643606,-500.0,0.00041095,30]
[392243024,1761276643617,-887.85,0.00041095,30]
[392243025,1761276643627,-500.0,0.00041095,30]
[392243026,1761276643638,-500.0,0.00041095,30]
[392243027,1761276643647,-722.47,0.00041095,30]
[392243028,1761276643656,-500.0,0.00041095,30]
[392243029,1761276643668,-500.0,0.00041095,30]
[392243030,1761276643678,-653.44,0.00041095,30]
[392243031,1761276643687,-245.25282339,0.00041095,30]
[392243032,1761276643696,-500.0,0.00041095,30]
[392243033,1761276643705,-500.0,0.00041095,30]
[392243034,1761276643714,-500.0,0.00041095,30]
[392243035,1761276643724,-500.0,0.00041095,30]
[392243036,1761276643733,-500.0,0.00041095,30]
[392243037,1761276643742,-500.0,0.00041095,30]
[392243038,1761276643751,-629.72,0.00041095,30]
[392243039,1761276643760,-500.0,0.00041095,30]
[392243040,1761276643769,-500.0,0.00041095,30]
[392243041,1761276643778,-500.0,0.00041095,30]
[392243042,1761276643789,-500.0,0.00041095,30]
[392243043,1761276643800,-500.0,0.00041095,30]
[392243044,1761276643809,-500.0,0.00041095,30]
[392243045,1761276643818,-768.04,0.00041095,30]
[392243046,1761276643828,-500.0,0.00041095,30]
[392243047,1761276643837,-500.0,0.00041095,30]
[392243048,1761276643847,-604.08,0.00041095,30]
[392243049,1761276643857,-617.03,0.00041095,30]
[392243050,1761276643866,-500.0,0.00041095,30]
[392243051,1761276643875,-500.0,0.00041095,30]
[392243052,1761276643884,-500.0,0.00041095,30]
[392243053,1761276643893,-500.0,0.00041095,30]
[392243054,1761276643902,-500.0,0.00041095,30]
[392243055,1761276643912,-698.83,0.00041095,30]
[392243056,1761276643921,-500.0,0.00041095,30]
[392243057,1761276643932,-680.26,0.00041095,30]
[392243058,1761276643943,-500.0,0.00041095,30]
[392243059,1761276643953,-500.0,0.00041095,30]
[392243060,1761276643962,-500.0,0.00041095,30]
[392243061,1761276643971,-500.0,0.00041095,30]
[392243062,1761276643981,-500.0,0.00041095,30]
[392243063,1761276643990,-563.42331414,0.00041095,30]
[392243064,1761276643999,-198.27311305,0.00041095,30]
[392243065,1761276644008,-507.58198729,0.00041095,30]
[392243066,1761276644018,-500.0,0.00041095,30]
[392243067,1761276644027,-500.0,0.00041095,30]
[392243068,1761276644036,-500.0,0.00041095,30]
[392243069,1761276644045,-560.72,0.00041095,30]
[392243070,1761276644054,-500.0,0.00041095,30]
[392243071,1761276644064,-500.0,0.00041095,30]
[392243072,1761276644073,-424.02591453,0.00041095,30]
[392243073,1761276644082,-500.0,0.00041095,30]
[392243074,1761276644092,-500.0,0.00041095,30]